Cogmind - Beta 15 @@@ ROGUE MODE // 2025.05.28 @ 15:47:18 Player: TAFFA Result: Self-destructed Performance ------------- Evolutions (6) 3000 Regions Visited (6) 1200 Robots Destroyed (69) 345 Value Destroyed (2571) 2571 Prototype IDs (13) 260 Alien Tech Used (0) 0 Bonus (882) 882 TOTAL SCORE: 8258 Bonus ------- High Alert Combat Kills 82 Registered with UFD 300 Met Optimus in HQ 500 Cogmind --------- Core Integrity 481/1150 Matter 42/300 Energy 14/100 System Corruption 10% Temperature Cool (10) Movement Core (50) Location -4/Factory Parts ------- > --- POWER (2) -------- (None) > --- PROPULSION (6) --- (None) > --- UTILITY (7) ------ (None) > --- WEAPON (4) ------- (None) > --- INVENTORY (5) ---- Launcher Loader Advanced Reaction Control System Long-range Tractor Beam Peak State ------------ > --- POWER ------------ Light Fission Core Light Fission Core > --- PROPULSION ------- Advanced Medium Treads Linear Gravjet Improved Gyrokinetic Inverter Improved Gyrokinetic Inverter > --- UTILITY ---------- Advanced Heat Sink Large Storage Unit Improved Weapon Cycler Advanced Reaction Control System Layered Heavy Armor Plating Hacking Suite > --- WEAPON ----------- High-powered Shock Rifle Matter Neutralizer > --- INVENTORY -------- Compact Wheel Particle Charger Launcher Loader Advanced Reaction Control System Advanced Reaction Control System Long-range Tractor Beam DRS Beacon [Rating: 87] Favorites ----------- Power Angular Momentum Engine Engine Angular Momentum Engine Power Core Light Fission Core Propulsion Light Treads Treads Light Treads Leg Armored Leg Wheel Compact Wheel Hover Unit Improved Gyrokinetic Inverter Utility Large Storage Unit Device Improved Weapon Cycler Storage Large Storage Unit Processor Improved Signal Interpreter Hackware System Shield Protection Hardened Medium Armor Plating Weapon Gauss Rifle Energy Gun Gatling Laser Energy Cannon Matter Neutralizer Ballistic Gun Gauss Rifle Ballistic Cannon Improved Light Cannon Launcher Smartbomb Launcher Impact Weapon Mace Slashing Weapon Chainsword Build | -11 -10 -10 -7 -7 -5 -4 ------- Run | Yrd Mat Sub Rec Scr Fac Fac Slots Evolved 12 | . . . . . 10 2 Power 1 | . . . . . 1 . Propulsion 4 | . . . . . 2 2 Utility 5 | . . . . . 5 . Weapon 2 | . . . . . 2 . Parts Attached 100 | 1 16 6 3 15 47 12 Power 12 | . 2 1 . 2 6 1 Engine 10 | . 2 1 . 2 4 1 Core 2 | . . . . . 2 . Reactor . | . . . . . . . Propulsion 21 | . 3 . . 7 8 3 Treads 8 | . 3 . . 4 . 1 Leg 9 | . . . . 3 6 . Wheel 1 | . . . . . . 1 Hover 3 | . . . . . 2 1 Flight . | . . . . . . . Utility 33 | 1 4 . 1 3 20 4 Device 16 | 1 . . . . 13 2 Storage 5 | . 2 . . 1 1 1 Processor 3 | . 1 . . 1 1 . Hackware 4 | . . . . . 4 . Protection 5 | . 1 . 1 1 1 1 Artifact . | . . . . . . . Weapon 34 | . 7 5 2 3 13 4 Energy Gun 12 | . 2 2 1 1 3 3 Energy Cannon 3 | . . 1 . . 1 1 Ballistic Gun 12 | . 1 1 1 2 7 . Ballistic Cannon 3 | . 3 . . . . . Launcher 2 | . 1 . . . 1 . Special Weapon . | . . . . . . . Impact Weapon 1 | . . 1 . . . . Slashing Weapon 1 | . . . . . 1 . Piercing Weapon . | . . . . . . . Special Melee Weapon . | . . . . . . . Unidentified Prototypes 1 | . . . . . 1 . Corrupted Parts 1 | . . . . . 1 . System Corruption 5 | . . . . . 5 . Parts Lost 39 | . 2 . . . 24 13 Power 8 | . . . . . 5 3 Propulsion 6 | . . . . . 4 2 Utility 13 | . 1 . . . 8 4 Weapon 12 | . 1 . . . 7 4 Highest Loss Streak 13 | . 2 . . . 13 9 To Critical Strikes 1 | . . . . . 1 . Average Backups 9 | 5 6 8 9 10 10 5 Power . | 1 . . . . 1 . Propulsion 1 | 3 3 3 3 2 . 1 Utility 3 | . . . 1 2 5 4 Weapon 3 | 1 1 3 4 4 3 . Tool/Special . | . . . . . . . Unused Backups 19 | . 7 . 1 4 2 5 Power 2 | . 2 . . . . . Propulsion 5 | . 3 . . 1 . 1 Utility 7 | . 2 . 1 . . 4 Weapon 5 | . . . . 3 2 . Tool/Special . | . . . . . . . Average Slot Usage (%) 94 | . 98 100 100 99 93 56 Engine 11 | . 14 14 14 14 10 . Treads 16 | . 24 28 28 26 . 3 Leg 7 | . 3 . . 1 21 . Hover 1 | . . . . . . 12 Device 5 | . 1 . . . 14 12 Storage 10 | . 14 14 14 14 5 4 Processor 2 | . 10 . . 2 3 1 Hackware 3 | . . . . . 9 4 Protection 8 | . 1 14 14 11 3 1 Energy Gun 7 | . 11 5 13 8 5 3 Ballistic Gun 13 | . 7 12 13 19 11 . Ballistic Cannon 1 | . 6 8 . . . . Peak Build Rating 87 | 7 10 12 16 34 84 87 Average Rating 37 | 6 7 11 15 23 74 61 On Entrance 16 | 6 7 10 11 16 30 38 Naked Turns 36 | . . . . . . 36 Heaviest Build 70 | 13 30 32 34 49 70 63 Greatest Support 68 | 20 40 40 40 43 68 33 Greatest Overweight (x) 16 | . 3 . . 16 8 2 Average Overweight (x) . | . . . . . . . Largest Inventory Capacity 25 | 8 25 10 10 15 25 15 Average Capacity 12 | 8 8 10 10 11 15 12 Most Carried 15 | 6 8 10 10 15 15 11 Average Carried 10 | 5 6 9 9 10 12 7 Final Capacity 15 | 8 10 10 10 15 15 5 Final Carried 15 | 5 7 9 10 15 8 4 Class Distribution -------------------- 64% | Mutant 9% | Hacker-Mutant 6% | Scavenger-Scrapper 4% | Hacker-Skirmisher 4% | Scavenger-Skirmisher 3% | Skirmisher Dominant Class ---------------- Mutant | -10/Materials Mutant | -10/Subcaves Mutant | -7/Recycling Mutant | -7/Scraptown Scavenger-Scrapper | -5/Factory Mutant | -4/Factory Resources | -11 -10 -10 -7 -7 -5 -4 ----------- Run | Yrd Mat Sub Rec Scr Fac Fac Matter Collected 2459 | 203 141 254 163 246 1452 . Remotely 680 | . . . . . 680 . Salvage Created 3393 | 97 385 39 199 140 2127 406 Parts 157 | 7 31 . 7 10 92 10 Haulers Intercepted 1 | . 1 . . . . . Recyclers Shooed 2 | . . . . . 1 1 Parts Field Recycled . | . . . . . . . Retrieved Matter . | . . . . . . . Parts Self-Destructed 5 | . . 3 . 2 . . Prevented . | . . . . . . . Kills | -11 -10 -10 -7 -7 -5 -4 ------- Run | Yrd Mat Sub Rec Scr Fac Fac Combat Hostiles Destroyed 48 | . 12 1 1 2 27 5 Guns 29 | . 6 . 1 2 19 1 Cannons 5 | . . 1 . . . 4 AOE 14 | . 6 . . . 8 . Classes Destroyed 15 | 2 5 1 1 1 5 . Worker 3 | . 1 . . . 2 . Tunneler 4 | 2 1 . . . 1 . Hauler 1 | . 1 . . . . . Recycler 9 | 1 1 . 1 . 5 1 Mechanic 1 | . . . . . 1 . Operator 1 | . . . . . 1 . Watcher 2 | . 1 . . . 1 . Swarmer 14 | . 9 . . . 4 1 Grunt 19 | . 3 . . . 16 . Duelist 1 | . . . . . 1 . Sentry 2 | . . . 1 . 1 . Hunter 3 | . . . . . 1 2 Programmer 6 | . . . . . 4 2 Subdweller 1 | . . 1 . . . . Scrapper 2 | . . . . 2 . . Best Kill Streak 7 | 2 7 1 1 2 5 1 Combat Bots Only 5 | . 5 1 1 2 5 1 Max Kills in Single Turn 3 | 1 3 1 1 1 3 1 Gunslinging 1 | . . . . . 1 . Exploded 3 | . 3 . . . 3 . Melee . | . . . . . . . Uniques/NPCs Destroyed . | . . . . . . . Combat | -11 -10 -10 -7 -7 -5 -4 -------- Run | Yrd Mat Sub Rec Scr Fac Fac Hostile Shots Fired 625 | . 42 4 63 18 294 204 Missed 205 | . 15 2 21 5 99 63 Hits 420 | . 27 2 42 13 195 141 Melee 8 | . . . . . 8 . Projectile 412 | . 27 2 42 13 187 141 AOE 5 | . . . . . 4 1 Critical Strikes 19 | . . . . 1 12 6 Part Disruptions 1 | . . . . . 1 . Damage Taken 7659 | . 287 39 305 284 4188 2556 Core 1614 | . 85 . 12 53 795 669 Absorbed by Shields . | . . . . . . . Regen/Repaired (Parts) 49 | . . . . . 49 . Core Remaining (%) 53 | 100 . . . 40 20 . Volleys Fired 219 | 11 29 18 10 11 86 54 Largest 4 | 2 2 2 2 2 4 2 Hottest 186 | 60 80 105 108 83 186 165 Shots Fired 407 | 14 50 20 20 19 224 60 Gun 329 | 14 35 14 13 19 217 17 Cannon 66 | . 10 6 7 . . 43 Launcher 12 | . 5 . . . 7 . Special . | . . . . . . . Kinetic 229 | 11 16 7 17 15 163 . Thermal 66 | . 4 11 3 . . 48 Explosive 12 | . 5 . . . 7 . Electromagnetic 100 | 3 25 2 . 4 54 12 Robot Hit Streak 13 | 4 5 4 13 7 13 11 Robot Miss Streak 8 | 2 8 . 1 1 4 6 Penetration Max 1 | . . . . . 1 . Secondary Targets 6 | . 2 . . . 4 . Max Gunslinging Chain 1 | . 1 . . . 1 . Shots Hit Robots 230 | 7 28 3 15 14 141 22 Core Hits 149 | 4 24 2 6 4 98 11 Critical Kills 4 | . . . . . 4 . Critical Parts Destroyed 6 | . . . 1 . 5 . Critical Strikes 12 | . 1 . 1 . 10 . Burn 1 | . 1 . . . . . Destroy 10 | . . . 1 . 9 . Sever 1 | . . . . . 1 . Melee Attacks 16 | . . 2 . . 14 . Impact 2 | . . 2 . . . . Slashing 14 | . . . . . 14 . Piercing . | . . . . . . . Sneak Attacks 2 | . . . . . 2 . Combat Hostiles . | . . . . . . . Follow-up Attacks . | . . . . . . . Damage Inflicted 7509 | 106 768 49 295 268 5181 842 Guns 3644 | 106 287 10 216 268 2519 238 Cannons 845 | . 123 39 79 . . 604 Explosions 2755 | . 358 . . . 2397 . Melee 220 | . . . . . 220 . Ramming 45 | . . . . . 45 . Kinetic 2730 | 63 189 39 207 200 2032 . Thermal 937 | . 37 . 88 . 100 712 Explosive 2458 | . 358 . . . 2100 . Electromagnetic 1119 | 43 184 10 . 68 684 130 Impact . | . . . . . . . Slashing 220 | . . . . . 220 . Piercing . | . . . . . . . Highest Corruption 30 | . . . . . 30 10 Average Corruption 5 | . . . . . 5 5 Corruption Purged . | . . . . . . . Corruption Blocked . | . . . . . . . Effects 38 | . . . . . 32 6 Message Errors 13 | . . . . . 11 2 Matter Fused 10 | . . . . . 10 . Heat Flow Errors 5 | . . . . . 4 1 Energy Discharges 4 | . . . . . 3 1 Data Loss (minor) 1 | . . . . . 1 . Data Loss (major) 1 | . . . . . . 1 Misfires 3 | . . . . . 3 . Misdirections 1 | . . . . . . 1 Overload Shots . | . . . . . . . Overflow Damage 97 | . 5 . . . 92 . Projectiles . | . . . . . . . Explosions 97 | . 5 . . . 92 . Melee . | . . . . . . . Knockbacks 2 | . 1 . . . 1 . Impact 1 | . . . . . 1 . Kinetic 1 | . 1 . . . . . Secondary . | . . . . . . . Self-Inflicted Damage 60 | . 39 . . . 21 . Shots 2 | . 1 . . . 1 . Rammed . | . . . . . . . Targets Rammed 4 | . . . . . 4 . Kicked 4 | . . . . . 4 . Crushed . | . . . . . . . Highest Temperature 380 | . 204 30 171 361 380 360 Average Temperature 110 | . 84 13 86 175 105 119 Received Heat Transfer 1126 | . 54 . 84 169 597 222 Effects 7 | . . . . 2 2 3 Shutdowns 2 | . . . . 1 . 1 Energy Bleed 3 | . . . . . 1 2 Matter Decay 1 | . . . . . 1 . Short Circuit 1 | . . . . 1 . . Siege Activations . | . . . . . . . Martial Activations . | . . . . . . . Shielding Activations . | . . . . . . . Robots Disrupted 1 | . . . . . 1 . Combat Hostiles 1 | . . . . . 1 . Robots Corrupted . | . . . . . . . Combat Hostiles . | . . . . . . . Parts Fried 2 | . . . . . 1 1 Impact Corruptions . | . . . . . . . Robots Melted . | . . . . . . . Combat Hostiles . | . . . . . . . Parts Melted 7 | . . . 1 3 . 3 Heat Transferred 1188 | . 185 . 200 . 100 703 Parts Sabotaged . | . . . . . . . Parts Stolen . | . . . . . . . Parts Stripped . | . . . . . . . Power Chain Reactions 1 | . . . . . 1 . Alert | -11 -10 -10 -7 -7 -5 -4 ------- Run | Yrd Mat Sub Rec Scr Fac Fac Maximum Alert Level 2 | . 1 . . . 2 . Low Security (%) 81 | 100 79 . 100 . 71 100 Level 1 7 | . 20 . . . 9 . Level 2 10 | . . . . . 19 . Level 3 . | . . . . . . . Level 4 . | . . . . . . . Level 5 . | . . . . . . . High Security . | . . . . . . . Max Security . | . . . . . . . Peak Influence 625 | 10 244 . 21 . 625 167 Initial 167 | . . . 7 . . 167 Average 100 | 2 83 . 1 . 151 77 Influence Increases 2066 | 15 392 15 69 . 1362 213 Destroy 0b10 Robot/C 900 | . 240 . 20 . 540 100 Destroy 0b10 Robot/NC 110 | 15 25 . 10 . 55 5 Destroy Leader 146 | . 44 . . . 82 20 Successful Hack 84 | . 8 . 39 . 37 . Select Force Hacks 20 | . . . . . 20 . Disable Machine 390 | . 45 . . . 345 . Destroy Structure 146 | . 30 . . . 88 28 Lose Combat Pursuer 270 | . . 15 . . 195 60 Influence Decreases 2027 | 15 222 170 84 . 1020 516 Entered New Map 265 | . . 82 8 . . 175 Time Decay 1087 | 15 202 88 76 . 460 246 Lost Part 355 | . 20 . . . 240 95 Lost Ally 20 | . . . . . 20 . Purge Threat 300 | . . . . . 300 . Squads Dispatched 13 | . 1 . . . 7 5 Investigation 3 | . . . . . 2 1 Extermination 5 | . . . . . 3 2 Reinforcement 3 | . 1 . . . . 2 Assault 2 | . . . . . 2 . Garrison . | . . . . . . . Intercept . | . . . . . . . Searches Triggered . | . . . . . . . Construction Impeded 1 | . . . . . . 1 Haulers Reinforced . | . . . . . . . Active Scanning Responses . | . . . . . . . Cargo Convoy Interrupts . | . . . . . . . Stealth | -11 -10 -10 -7 -7 -5 -4 --------- Run | Yrd Mat Sub Rec Scr Fac Fac Distress Signals 4 | . . . . . 4 . Communications Jammed . | . . . . . . . Distress Signals . | . . . . . . . Times Spotted 108 | . 19 6 1 4 61 17 Peak Tracking Total 11 | . 5 4 1 2 8 11 Tactical Retreats 14 | . . 1 . . 10 3 Traps | -11 -10 -10 -7 -7 -5 -4 ------- Run | Yrd Mat Sub Rec Scr Fac Fac Traps Triggered 3 | . 1 . . . 1 1 Indirectly . | . . . . . . . Trap Hack Attempts . | . . . . . . . Triggered . | . . . . . . . Disarmed . | . . . . . . . Reprogrammed . | . . . . . . . Reused . | . . . . . . . Traps Extracted . | . . . . . . . Installed . | . . . . . . . Triggered . | . . . . . . . Machines | -11 -10 -10 -7 -7 -5 -4 ---------- Run | Yrd Mat Sub Rec Scr Fac Fac Machines Disabled 27 | . 3 . . 1 23 . Max in Single Turn 8 | . 1 . . 1 8 . Garrison Access 1 | . . . . . 1 . Machines Repaired . | . . . . . . . Machines Dismantled . | . . . . . . . Machines Sabotaged . | . . . . . . . Overloaded Fab Kills . | . . . . . . . Hacking | -11 -10 -10 -7 -7 -5 -4 --------- Run | Yrd Mat Sub Rec Scr Fac Fac Machines Accessed 30 | . 6 . 7 4 12 1 Terminals 19 | . 6 . 5 . 7 1 Fabricators 3 | . . . . . 3 . Repair Stations . | . . . . . . . Recycling Units 2 | . . . 1 . 1 . Scanalyzers . | . . . . . . . Garrison Access 1 | . . . . . 1 . Total Hacks 95 | . 11 . 17 21 43 3 Successful 58 | . 5 . 10 21 22 . Failed 37 | . 6 . 7 . 21 3 Catastrophic 7 | . 1 . 2 . 2 2 Database Lockouts . | . . . . . . . Manual 52 | . 11 . 11 . 27 3 Terminals 56 | . 11 . 11 . 31 3 Fabricators 9 | . . . . . 9 . Repair Stations . | . . . . . . . Recycling Units 4 | . . . 3 . 1 . Scanalyzers . | . . . . . . . Garrison Access 2 | . . . . . 2 . Terminal Hacks 30 | . . . 3 21 6 . Record 23 | . . . 3 20 . . Open DSF 1 | . . . . . 1 . Level Access Points 1 | . . . . . 1 . Branch Access Points 1 | . . . . . 1 . Alert Level 1 | . . . . . 1 . Unreport Threat 2 | . . . . . 2 . Proto ID Catalog 1 | . . . . 1 . . Fabricator Hacks 2 | . . . . . 2 . Network Status 1 | . . . . . 1 . Build 1 | . . . . . 1 . Repair Station Hacks . | . . . . . . . Recycling Unit Hacks 3 | . . . 2 . 1 . Report Inventory 2 | . . . 1 . 1 . Retrieve Components 1 | . . . 1 . . . Scanalyzer . | . . . . . . . Garrison Access Hacks 1 | . . . . . 1 . Seal Access 1 | . . . . . 1 . Unauthorized Hacks 22 | . 5 . 5 . 12 . Terminals 20 | . 5 . 5 . 10 . Botnet 6 | . . . 1 . 5 . Skim 14 | . 5 . 4 . 5 . Fabricators 2 | . . . . . 2 . Haulers 1 | . . . . . 1 . Download 1 | . . . . . 1 . Repair Stations . | . . . . . . . Recycling Units . | . . . . . . . Scanalyzers . | . . . . . . . Garrison Access . | . . . . . . . Data Cores Recovered 1 | . . . . . 1 . Used . | . . . . . . . Hacking Detections 19 | . 5 . 5 . 8 1 Full Trace Events 2 | . . . . . 1 1 Feedback Events . | . . . . . . . Feedback Blocked . | . . . . . . . Robot Schematics Acquired . | . . . . . . . Robots Built . | . . . . . . . Authchips . | . . . . . . . Time . | . . . . . . . Total Robot Build Rating . | . . . . . . . Part Schematics Acquired . | . . . . . . . Parts Built 2 | . . . . . 2 . Authchips . | . . . . . . . Time 39 | . . . . . 39 . Total Part Build Rating 14 | . . . . . 14 . Parts Repaired . | . . . . . . . Time . | . . . . . . . Parts Recycled . | . . . . . . . Recycled Matter . | . . . . . . . Retrieved Matter . | . . . . . . . Retrieved Components 1 | . . . 1 . . . Parts Scanalyzed . | . . . . . . . Part Schematics Acquired . | . . . . . . . Parts Damaged . | . . . . . . . Bothacking | -11 -10 -10 -7 -7 -5 -4 ------------ Run | Yrd Mat Sub Rec Scr Fac Fac Used RIF Installer . | . . . . . . . Robots Hacked . | . . . . . . . Non-combat . | . . . . . . . Combat . | . . . . . . . Robot Hacks Applied . | . . . . . . . Relay Couplers Released 2 | . . . . . 2 . Machine Destruction 2 | . . . . . 2 . Fabnet Peak Effective % . | . . . . . . . Robots Rewired 1 | . . . . . 1 . Allies Hacked . | . . . . . . . Hacks Repelled . | . . . . . . . Allies | -11 -10 -10 -7 -7 -5 -4 -------- Run | Yrd Mat Sub Rec Scr Fac Fac Total Allies 1 | . . . . . 1 . Largest Group 1 | . . . . . 1 . Highest-Rated Group 29 | . . . . . 29 . Highest-Rated Ally 29 | . . . . . 29 . Total Orders . | . . . . . . . Ally Attacks . | . . . . . . . Total Damage . | . . . . . . . Kills . | . . . . . . . Allies Corrupted . | . . . . . . . Allies Melted . | . . . . . . . Intel | -11 -10 -10 -7 -7 -5 -4 ------- Run | Yrd Mat Sub Rec Scr Fac Fac Active Infowar (turns) 2134 | 9 524 . . . 1601 . Sensors 1161 | . . . . . 1161 . Seismic 53 | 9 44 . . . . . T.N.C. 480 | . 480 . . . . . Cloaking 440 | . . . . . 440 . Robot Analysis Total . | . . . . . . . Derelict Logs Recovered . | . . . . . . . Drone Launches . | . . . . . . . Drone Recoveries . | . . . . . . . Exploration | -11 -10 -10 -7 -7 -5 -4 ------------- Run | Yrd Mat Sub Rec Scr Fac Fac Turns Passed 8096 | 80 643 834 932 2615 2468 524 Spaces Moved 4322 | 13 302 483 544 1372 1336 272 Core 72 | . 2 . . 2 2 66 Treads 2650 | . 278 483 544 1310 . 35 Legs 1337 | 13 22 . . 60 1242 . Wheels 6 | . . . . . . 6 Hover 257 | . . . . . 92 165 Flight . | . . . . . . . Fastest Speed 50 | 120 120 160 160 160 66 50 Average Speed 154 | 120 157 160 160 178 133 110 Slowest Speed 850 | 120 200 160 160 850 450 305 Overloaded Moves . | . . . . . . . Propulsion Burnouts . | . . . . . . . Robots Hopped . | . . . . . . . Potential Cave-ins . | . . . . . . . Cave-ins Triggered . | . . . . . . . Exploration Rate (%) 47 | 4 66 41 94 89 32 6 Regions Visited 6 Branch Regions 3 Pre-discovered Areas 1 | . 1 . . . . . Known Exits Taken 5 | . 1 1 1 1 1 . Unknown Exits Taken 1 | 1 . . . . . . Scrap Searched 10 | . . 6 . 4 . . Spaces Dug 20 | . . 1 . . 7 12 Terrain Destroyed 121 | . 26 1 . . 67 27 Melee 8 | . . 1 . . 7 . Projectile 34 | . . . . . 7 27 AOE 79 | . 26 . . . 53 . Terrain Rammed . | . . . . . . . Walls Destroyed . | . . . . . . . Machines Disabled . | . . . . . . . Actions | -11 -10 -10 -7 -7 -5 -4 --------- Run | Yrd Mat Sub Rec Scr Fac Fac Total 5412 | 63 418 519 584 1523 1858 447 Wait 565 | 38 52 . 19 78 290 88 Move 4316 | 12 301 482 543 1371 1335 272 Hop . | . . . . . . . Pick Up 61 | . 7 4 2 22 19 7 Fast Attach 28 | 1 5 . . 2 13 7 Attach 36 | . 2 1 . 1 22 10 Detach 6 | . . . . . 2 4 Swap 88 | . 13 8 6 14 46 1 Drop 70 | 1 9 4 2 24 26 4 Fire 219 | 11 29 18 10 11 86 54 Melee 16 | . . 2 . . 14 . Ram . | . . . . . . . Kick 4 | . . . . . 4 . Crush . | . . . . . . . Escape Stasis . | . . . . . . . Rewire 3 | . . . 2 . 1 . Trap . | . . . . . . . Miscellaneous . | . . . . . . . Route ------- -11/Scrapyard -10/Materials (discovered 6 exits: *Mat x3 / [*Min x2] / *Sub) -10/Subcaves (discovered 2 exits: *Mat / *Rec) -7/Recycling (discovered 2 exits: *Fac / *Scr) -7/Scraptown (discovered 2 exits: *Fac x2) -5/Factory (discovered 6 exits: *Fac x4 / Upp x2) -4/Factory History --------- Turn | Location | Event 1 | -11/Scrapyard | Discovered new exit (range 3) 81 | -11/Scrapyard | Entered Materials 81 | -10/Materials | Discovered new exit (range 14) 312 | -10/Materials | Build established: Mutant 443 | -10/Materials | Discovered new exit (range 15) 650 | -10/Materials | Discovered new exit (range 7) 655 | -10/Materials | Identified exit to Materials 655 | -10/Materials | Identified exit to Subcaves 687 | -10/Materials | Learned location of 1 exit from Materials 720 | -10/Materials | Learned location of 2 exits from Subcaves 721 | -10/Materials | Learned location of Mines (-10) 722 | -10/Materials | Learned location of 1 exit from Recycling 724 | -10/Materials | Entered Subcaves 725 | -10/Subcaves | Identified exit to Recycling 725 | -10/Subcaves | Identified exit to Materials 791 | -10/Subcaves | Disturbed a concealed Subdweller 899 | -10/Subcaves | Shifting Twisted Machinery released Scrap Shield 1063 | -10/Subcaves | Shifting Twisted Machinery released Sub. Power Source 1376 | -10/Subcaves | Shifting Twisted Machinery released Sub. Monowheel 1389 | -10/Subcaves | Shifting Twisted Machinery released Sub. Beam Cannon 1452 | -10/Subcaves | Shifting Twisted Machinery released Mak. Thermal Plating 1454 | -10/Subcaves | Shifting Twisted Machinery released Sub. Beam Cannon 1558 | -10/Subcaves | Entered Recycling 1559 | -7/Recycling | Identified exit to Scraptown 1795 | -7/Recycling | Discovered new exit (range 15) 2355 | -7/Recycling | Scanned before Scraplab entrance 2473 | -7/Recycling | Entered Scraplab 2490 | -7/Recycling | Entered Scraptown 2951 | -7/Scraptown | Visited UFD Registry 2975 | -7/Scraptown | Visited Science Testing Area 3004 | -7/Scraptown | Visited The Evicted 3039 | -7/Scraptown | Visited Fellowship of the Rings 3091 | -7/Scraptown | Visited Spacefarers 3294 | -7/Scraptown | Heard Great Nut preacher, LISTEN AND RECITE! 3599 | -7/Scraptown | Discovered new exit (range 11) 3736 | -7/Scraptown | Visited Symbiants 3757 | -7/Scraptown | Visited Observation Area 3824 | -7/Scraptown | Registered with UFD as "Toolchassis" 3869 | -7/Scraptown | Visited Scrapoid Pod Storage 3891 | -7/Scraptown | Visited Derelict Rescue Squad 3914 | -7/Scraptown | Found DRS Beacon 3947 | -7/Scraptown | Visited Science Guys 4013 | -7/Scraptown | Visited A0-MCA Data Center 4022 | -7/Scraptown | Given an A rating by A0-MCA 4029 | -7/Scraptown | Found A0-MCA's Component Scanner 4489 | -7/Scraptown | Met Optimus 4489 | -7/Scraptown | Accepted into 0bPrime 4604 | -7/Scraptown | Visited LU-1G1's Boring Crew 4659 | -7/Scraptown | Visited DA-N13 Charitable Foundation 4681 | -7/Scraptown | Found DCF Scrap (29 items) 4784 | -7/Scraptown | Visited Chapter 10 4798 | -7/Scraptown | Civil war broke out across Scraptown 4872 | -7/Scraptown | Identified exit to Factory 4877 | -7/Scraptown | Lost 8 allies 4881 | -7/Scraptown | Visited Junk Repository 4945 | -7/Scraptown | Core integrity fell below 50% 4998 | -7/Scraptown | Found Scrap Suit 5105 | -7/Scraptown | Entered Factory 5105 | -5/Factory | Evolved 10 slots: Power x1, Propulsion x2, Utility x5, Weapon x2 5109 | -5/Factory | Lost 4 allies 5416 | -5/Factory | Build established: Scavenger-Scrapper 6955 | -5/Factory | Fabricated Imp. Gyrokinetic Inverter (x2) 7180 | -5/Factory | Spotted B-75 Beast 7205 | -5/Factory | First assault squad dispatched 7253 | -5/Factory | Lost 3 parts (1p1u1w) 7308 | -5/Factory | System corruption reached 10% 7349 | -5/Factory | Lost 4 parts (1p3w) 7363 | -5/Factory | Found Launcher Loader 7365 | -5/Factory | Identified exit to Upper Caves 7365 | -5/Factory | Identified exit to Factory 7545 | -5/Factory | Core integrity fell below 50% 7573 | -5/Factory | System corruption reached 30% 7573 | -5/Factory | Entered another Factory area 7573 | -4/Factory | Evolved 2 slots: Propulsion x2 7592 | -4/Factory | Build established: Hacker-Mutant 7604 | -4/Factory | Lost 13 parts (2p4n4u3w) 7899 | -4/Factory | Lost 3 parts (2p1u) 8041 | -4/Factory | Released all parts (4) 8079 | -4/Factory | System corruption reached 10% 8088 | -4/Factory | Core integrity fell below 50% 8094 | -4/Factory | Lost 9 parts (1p2n3u3w) 8097 | -4/Factory | Self-destructed Last Messages --------------- 08041_ Dropped Adv. Medium Treads. 08041_ Released Imp. Weapon Cycler. 08041_ Released Imp. Gyrokinetic Inverter. 08041_ Released Med. Storage Unit. 08042_ ALERT: Potential suspicious activity detected, Programmers report to Factory Zone 7W. 08042_ U-05 Engineer lays Concrete. 08044_ YT0UQA5B6F 08OVITZOYFIYOI 08063_ Com. Wheel destroyed. 08066_ RA#5%WKR,,V4XK35 # 5DRDRLWUBZZKWWK6N9UE9 08078_ Triggered EM Surge Trap. 08078_ The floor emits a surge of raw power. 08078_ System corrupted (+4). 08085_ System corrupted: Substantial component data lost. 08085_ Acquired Dispersion Rifle. 08085_ S-27 Virus destroyed. 08089_ Destroyed VTOL Module. 08091_ S-27 Virus destroyed. 08093_ Destroyed Lgt. Nuclear Core. 08096_ Dispersion Rifle destroyed. Map ----- +----------------------------------------------------+ | ????############## + """ """ # # "" | | ???????????????### ### """ """ + + "" | | ?????????????????# #?# # # | | ?????????????????# #?# """ """ # # | | ?????????????????# #?# """ """ # ###### | | ?????????????????# #?# """ """ # #??? | | ?????????????????# #?#! # #??? | | ?????????????????# #?# # #??? | | ?????????????????# #?# """T""" # #??? | | ?????????????????# #?############## #??? | | ?????????????????# ###################+####??? | | ?????????????????# # """"" # #??? | | ???????? # # ""T"" # #??? | | ???????????""" + / # "" "" #??? | | ???????????""" # # """ """ # "" "" #??? | | ???????????""" ??# # """ """ # """ """ #??? | | ??????????? ????# ^ # """ """ # """ """ #??? | | ?????????????????# # # """ """ #??? | | ?????????????????# # """ """ # #??? | | ?????????????????# # """ """ ###########??? | | ?????????????????# # """ """ #????????????? | | ?????????????????# # #????????????? | | ??????????????#### # #????????????? | | ??????? ##############????????????? | | ??????????##########+#g########??????????????????? | | ???????????# [ gs%@ #??????????????????? | | ???????????# ss%* #??????????????????? | | ???????????# """ """ ! #??????????????????? | | ???????????# """"" """"" #??????????????????? | | ???????????#? """"" """"" #??????????????????? | | ??????????????? #??????????????????? | | ??????????????? = #??????????????????? | | ?????????????? #??????????????????? | | ?????????????##################??????????????????? | | ?????????????????????????????????????????????????? | | ?????????????????????????????????????????????????? | | ?????????????????????????????????????????????????? | | ?????????????????????????????????????????????????? | | ?????????????????????????????????????????????????? | | ?????????????????????????????????????????????????? | | ?????????????????????????????????????????????????? | | ?????????????????????????????????????????????????? | | ?????????????????????????????????????????????????? | | ?????????????????????????????????????????????????? | | ?????????????????????????????????????????????????? | | ?????????????????????????????????????????????????? | | ?????????????????????????????????????????????????? | | ?????????????????????????????????????????????????? | | ?????????????????????????????????????????????????? | | ?????????????????????????????????????????????????? | +----------------------------------------------------+ Best States ------------- Heat Dissipation 78 Energy Generation 31 Energy Capacity 350 Matter Stores 300 Matter Capacity 300 Sight Range 16 Robot Scan Range 15 Terrain Scan Density 10 Cloak Strength 2 Base Temperature (-) 100 Armor Coverage 600 Weapon Cycling 20 Phase Shifting 5 Evasion (%) 61 Recoil Reduction 6 Particle Charging 15 Offensive Hacking 21 Defensive Hacking 22 Item Schematics ----------------- None Robot Schematics ------------------ None Fabricated ------------ Imp. Gyrokinetic Inverter | x2 | -5/Factory | Preloaded Repaired ---------- Nothing Alien Tech Used ----------------- None Achievements -------------- None Challenges ------------ None Game ------ Seed TacticalScatterTerrabomb Manual? 0 Play Time 01:57:03 Cumulative 34.1 hours Start 2025.05.27 @ 15:39:26 End 2025.05.28 @ 15:47:18 Sessions 5 Manual Loads 0 Difficulty Rogue Special Mode None Game No. 54 Rogue 54 Adventurer 0 Explorer 0 Win Type - Total 0 Types 0/0/0/0/0/0/0/0/0/0 Lore% 24 Gallery% 33 Achievement% 30 Wizard Run 0 Options --------- Layout 0 ASCII 0 Keyboard 0 Movement Numpad Keybinds 0 Fullscreen 2 Font 36/Smallcaps Map View 76x50 Zoom Use 21% Tactical HUD 1 Map Filters NONE Filters NONE Steam 1 RUN: 00f46863-3cc9-49ab-a476-5caa3e12d087